[Event "*** Titled Tuesday Blitz"]
[Site "Chess.com"]
[Date "2020.05.26"]
[Round "2"]
[White "woodhy"]
[Black "Vandros57"]
[Result "1/2-1/2"]
[WhiteElo "2404"]
[BlackElo "2177"]
[TimeControl "180+1"]
[EndTime "10:18:25 PDT"]
[Termination "Game drawn - insufficient material"]

1. e4 {[%clk 0:03:00.9]} 1... c5 {[%clk 0:02:59]} 2. Nf3 {[%clk 0:03:00.6]} 2...
e6 {[%clk 0:02:58.2]} 3. d4 {[%clk 0:03:00.9]} 3... cxd4 {[%clk 0:02:57.5]} 4.
Nxd4 {[%clk 0:03:01.8]} 4... Nf6 {[%clk 0:02:56.9]} 5. Bd3 {[%clk 0:02:56.2]}
5... Nc6 {[%clk 0:02:55.2]} 6. c3 {[%clk 0:02:54.8]} 6... e5 {[%clk 0:02:47]} 7.
Nf5 {[%clk 0:02:51.5]} 7... d5 {[%clk 0:02:44.3]} 8. exd5 {[%clk 0:02:52.4]}
8... Qxd5 {[%clk 0:02:36.5]} 9. Ne3 {[%clk 0:02:51.7]} 9... Qd6 {[%clk
0:02:26.8]} 10. O-O {[%clk 0:02:51.6]} 10... Be7 {[%clk 0:02:25.5]} 11. b3
{[%clk 0:02:49.2]} 11... O-O {[%clk 0:02:21.4]} 12. Ba3 {[%clk 0:02:48.5]} 12...
Qc7 {[%clk 0:02:20.8]} 13. Bxe7 {[%clk 0:02:44.8]} 13... Qxe7 {[%clk 0:02:20.5]}
14. Qc2 {[%clk 0:02:44.1]} 14... e4 {[%clk 0:02:17.8]} 15. Be2 {[%clk
0:02:43.4]} 15... Rd8 {[%clk 0:02:02.8]} 16. Nd2 {[%clk 0:02:43.3]} 16... b6
{[%clk 0:01:57.5]} 17. Rad1 {[%clk 0:02:41.5]} 17... Bb7 {[%clk 0:01:56.9]} 18.
Ndc4 {[%clk 0:02:38.8]} 18... Rac8 {[%clk 0:01:52.8]} 19. Nf5 {[%clk 0:02:37.3]}
19... Qe6 {[%clk 0:01:48.6]} 20. Nfd6 {[%clk 0:02:33.4]} 20... Rc7 {[%clk
0:01:45.6]} 21. Nxb7 {[%clk 0:02:31.3]} 21... Rxb7 {[%clk 0:01:43.9]} 22. Rxd8+
{[%clk 0:02:30.1]} 22... Nxd8 {[%clk 0:01:43.3]} 23. Rd1 {[%clk 0:02:28.4]}
23... Rd7 {[%clk 0:01:42.6]} 24. Ne3 {[%clk 0:02:27.1]} 24... g6 {[%clk
0:01:36.1]} 25. Bc4 {[%clk 0:02:22.6]} 25... Qc6 {[%clk 0:01:33.1]} 26. a4
{[%clk 0:02:10.3]} 26... Kg7 {[%clk 0:01:32]} 27. h3 {[%clk 0:02:09.2]} 27... h5
{[%clk 0:01:31.5]} 28. Bb5 {[%clk 0:02:06.1]} 28... Rxd1+ {[%clk 0:01:28.7]} 29.
Qxd1 {[%clk 0:02:07]} 29... Qc7 {[%clk 0:01:23.3]} 30. Qd4 {[%clk 0:02:05.6]}
30... Ne6 {[%clk 0:01:20.3]} 31. Qd2 {[%clk 0:01:38.7]} 31... Qe5 {[%clk
0:01:17.3]} 32. Nc4 {[%clk 0:01:35.3]} 32... Qc5 {[%clk 0:01:15.3]} 33. Nd6
{[%clk 0:01:27.2]} 33... Qe5 {[%clk 0:01:10.2]} 34. Bc4 {[%clk 0:01:20.4]} 34...
h4 {[%clk 0:01:05.9]} 35. Nb5 {[%clk 0:01:16]} 35... a5 {[%clk 0:01:03.1]} 36.
Qd6 {[%clk 0:01:10]} 36... Qxd6 {[%clk 0:00:54.1]} 37. Nxd6 {[%clk 0:01:10.9]}
37... Nc5 {[%clk 0:00:50.3]} 38. Nxf7 {[%clk 0:01:04.1]} 38... Nfd7 {[%clk
0:00:47]} 39. Nd6 {[%clk 0:01:01.9]} 39... Kf6 {[%clk 0:00:44.9]} 40. Kf1 {[%clk
0:00:56.5]} 40... Ke5 {[%clk 0:00:43.7]} 41. Nb5 {[%clk 0:00:53.7]} 41... g5
{[%clk 0:00:41.4]} 42. Nd4 {[%clk 0:00:53.4]} 42... Kf4 {[%clk 0:00:38.9]} 43.
Ke2 {[%clk 0:00:46]} 43... g4 {[%clk 0:00:37]} 44. hxg4 {[%clk 0:00:45.2]} 44...
Kxg4 {[%clk 0:00:36.7]} 45. Ke3 {[%clk 0:00:44.2]} 45... h3 {[%clk 0:00:33.9]}
46. gxh3+ {[%clk 0:00:45.1]} 46... Kxh3 {[%clk 0:00:33.6]} 47. Bd5 {[%clk
0:00:38.7]} 47... Kg2 {[%clk 0:00:31.6]} 48. Bxe4+ {[%clk 0:00:29.9]} 48... Nxe4
{[%clk 0:00:31.1]} 49. Kxe4 {[%clk 0:00:30.8]} 49... Kxf2 {[%clk 0:00:30.2]} 50.
Kd5 {[%clk 0:00:30.7]} 50... Ke3 {[%clk 0:00:28.2]} 51. Kc6 {[%clk 0:00:30.7]}
51... Ne5+ {[%clk 0:00:27.6]} 52. Kxb6 {[%clk 0:00:29.2]} 52... Kd3 {[%clk
0:00:26.4]} 53. Nc6 {[%clk 0:00:23]} 53... Nd7+ {[%clk 0:00:24.8]} 54. Kxa5
{[%clk 0:00:21.7]} 54... Kxc3 {[%clk 0:00:24.3]} 55. b4 {[%clk 0:00:22]} 55...
Kc4 {[%clk 0:00:24]} 56. b5 {[%clk 0:00:22]} 56... Nc5 {[%clk 0:00:23.5]} 57.
Nb8 {[%clk 0:00:17.4]} 57... Kb3 {[%clk 0:00:22.5]} 58. b6 {[%clk 0:00:16.4]}
58... Nxa4 {[%clk 0:00:22]} 59. Na6 {[%clk 0:00:11.1]} 59... Nxb6 {[%clk
0:00:21.1]} 1/2-1/2

[Event "*** Titled Tuesday Blitz"]
[Site "Chess.com"]
[Date "2020.05.26"]
[Round "2"]
[White "RaunakSadhwani2005"]
[Black "Keks2017"]
[Result "1-0"]
[WhiteElo "2825"]
[BlackElo "2529"]
[TimeControl "180+1"]
[EndTime "10:18:26 PDT"]
[Termination "RaunakSadhwani2005 won on time"]

1. e4 {[%clk 0:02:59.8]} 1... d6 {[%clk 0:02:59.4]} 2. d4 {[%clk 0:02:59]} 2...
Nf6 {[%clk 0:02:59.5]} 3. Nc3 {[%clk 0:02:58.9]} 3... g6 {[%clk 0:02:59.1]} 4.
Nf3 {[%clk 0:02:58.6]} 4... Bg7 {[%clk 0:02:58.5]} 5. Be2 {[%clk 0:02:58.8]}
5... O-O {[%clk 0:02:58.2]} 6. O-O {[%clk 0:02:58.8]} 6... c6 {[%clk 0:02:58.2]}
7. a4 {[%clk 0:02:58.6]} 7... Qc7 {[%clk 0:02:57.7]} 8. h3 {[%clk 0:02:58]} 8...
Nbd7 {[%clk 0:02:57.4]} 9. Be3 {[%clk 0:02:56.8]} 9... b6 {[%clk 0:02:57.2]} 10.
Qd2 {[%clk 0:02:53.1]} 10... Rb8 {[%clk 0:02:56.9]} 11. d5 {[%clk 0:02:49.2]}
11... c5 {[%clk 0:02:47.6]} 12. Bc4 {[%clk 0:02:47.9]} 12... a6 {[%clk
0:02:45.9]} 13. Qe2 {[%clk 0:02:47.6]} 13... Ra8 {[%clk 0:02:39.5]} 14. Rfe1
{[%clk 0:02:43.5]} 14... Qb8 {[%clk 0:02:37.2]} 15. Rad1 {[%clk 0:02:34.4]}
15... Ne8 {[%clk 0:02:36.6]} 16. Bg5 {[%clk 0:02:33.5]} 16... f6 {[%clk
0:02:35.2]} 17. Bf4 {[%clk 0:02:31.6]} 17... Nc7 {[%clk 0:02:30.7]} 18. h4
{[%clk 0:02:31.8]} 18... Rf7 {[%clk 0:02:09.1]} 19. h5 {[%clk 0:02:29.9]} 19...
Nf8 {[%clk 0:02:08.9]} 20. hxg6 {[%clk 0:02:24.4]} 20... hxg6 {[%clk 0:02:08.8]}
21. Bg3 {[%clk 0:02:12.9]} 21... Bg4 {[%clk 0:02:00.8]} 22. Qd3 {[%clk
0:02:10.5]} 22... Bd7 {[%clk 0:01:56.7]} 23. Ra1 {[%clk 0:01:46.4]} 23... Qb7
{[%clk 0:01:42.8]} 24. Reb1 {[%clk 0:01:28.4]} 24... b5 {[%clk 0:01:12]} 25.
axb5 {[%clk 0:01:27.8]} 25... axb5 {[%clk 0:01:11.6]} 26. Rxa8 {[%clk
0:01:27.5]} 26... bxc4 {[%clk 0:01:10.3]} 27. Rxf8+ {[%clk 0:01:27.2]} 27...
Rxf8 {[%clk 0:01:10]} 28. Qxc4 {[%clk 0:01:27.2]} 28... Rb8 {[%clk 0:00:54.4]}
29. Qd3 {[%clk 0:01:17.9]} 29... Nb5 {[%clk 0:00:53.2]} 30. Ne2 {[%clk 0:01:00]}
30... Nc7 {[%clk 0:00:25]} 31. Nf4 {[%clk 0:00:54.5]} 31... Be8 {[%clk
0:00:23.2]} 32. b3 {[%clk 0:00:35.3]} 32... g5 {[%clk 0:00:22.7]} 33. Ne2 {[%clk
0:00:34.5]} 33... Bg6 {[%clk 0:00:22.3]} 34. Nd2 {[%clk 0:00:32.6]} 34... Nb5
{[%clk 0:00:20.1]} 35. Nc4 {[%clk 0:00:31.1]} 35... Ra8 {[%clk 0:00:18.9]} 36.
f4 {[%clk 0:00:26.3]} 36... gxf4 {[%clk 0:00:18.1]} 37. Nxf4 {[%clk 0:00:26.9]}
37... Bh7 {[%clk 0:00:18.5]} 38. Bf2 {[%clk 0:00:26.7]} 38... Nc7 {[%clk
0:00:17.4]} 39. Nh5 {[%clk 0:00:21.5]} 39... Bh6 {[%clk 0:00:16.4]} 40. Be3
{[%clk 0:00:20.7]} 40... Bxe3+ {[%clk 0:00:15.2]} 41. Qxe3 {[%clk 0:00:21.6]}
41... Kh8 {[%clk 0:00:15.6]} 42. Kf2 {[%clk 0:00:22]} 42... Rg8 {[%clk
0:00:15.1]} 43. Rh1 {[%clk 0:00:22.2]} 43... Rg5 {[%clk 0:00:15.1]} 44. Qh3
{[%clk 0:00:21.9]} 44... Ne8 {[%clk 0:00:10.4]} 45. Nf4 {[%clk 0:00:18.3]} 45...
Rg7 {[%clk 0:00:10.1]} 46. Ne6 {[%clk 0:00:18.7]} 46... Rf7 {[%clk 0:00:09.8]}
47. Qh5 {[%clk 0:00:19.1]} 47... Kg8 {[%clk 0:00:09.5]} 48. Rh3 {[%clk
0:00:19.6]} 48... Qa6 {[%clk 0:00:06.6]} 49. Rg3+ {[%clk 0:00:18.2]} 49... Ng7
{[%clk 0:00:06.6]} 50. Qh6 {[%clk 0:00:18.6]} 1-0

[Event "*** Titled Tuesday Blitz"]
[Site "Chess.com"]
[Date "2020.05.26"]
[Round "2"]
[White "agrigo3"]
[Black "Alexander_Moskalenko"]
[Result "0-1"]
[WhiteElo "2312"]
[BlackElo "2790"]
[TimeControl "180+1"]
[EndTime "10:18:26 PDT"]
[Termination "Alexander_Moskalenko won on time"]

1. Nf3 {[%clk 0:03:00.9]} 1... c5 {[%clk 0:02:52.5]} 2. g3 {[%clk 0:03:00.9]}
2... b6 {[%clk 0:02:49.3]} 3. Bg2 {[%clk 0:03:01.4]} 3... Bb7 {[%clk 0:02:50.2]}
4. O-O {[%clk 0:03:01.4]} 4... e6 {[%clk 0:02:50.8]} 5. c4 {[%clk 0:02:50.4]}
5... Nf6 {[%clk 0:02:48.6]} 6. b3 {[%clk 0:02:50.5]} 6... Be7 {[%clk 0:02:47.9]}
7. Bb2 {[%clk 0:02:50.7]} 7... O-O {[%clk 0:02:48.8]} 8. Nc3 {[%clk 0:02:47.3]}
8... d6 {[%clk 0:02:49.3]} 9. Re1 {[%clk 0:02:40.5]} 9... Ne4 {[%clk 0:02:41.9]}
10. Nxe4 {[%clk 0:02:39.6]} 10... Bxe4 {[%clk 0:02:42.8]} 11. d3 {[%clk
0:02:39.8]} 11... Bb7 {[%clk 0:02:43.3]} 12. d4 {[%clk 0:02:32.9]} 12... cxd4
{[%clk 0:02:43.1]} 13. Qxd4 {[%clk 0:02:29.7]} 13... Bf6 {[%clk 0:02:39.3]} 14.
Qd2 {[%clk 0:02:29.7]} 14... Bxb2 {[%clk 0:02:39.5]} 15. Qxb2 {[%clk 0:02:29.8]}
15... Nd7 {[%clk 0:02:40.4]} 16. Rad1 {[%clk 0:02:28]} 16... Qc7 {[%clk
0:02:37.6]} 17. Qd4 {[%clk 0:02:23.2]} 17... d5 {[%clk 0:02:36]} 18. cxd5 {[%clk
0:02:21.2]} 18... Bxd5 {[%clk 0:02:33.4]} 19. e4 {[%clk 0:02:15.9]} 19... Bc6
{[%clk 0:02:33.4]} 20. Qb2 {[%clk 0:01:46.7]} 20... Rfd8 {[%clk 0:02:23.6]} 21.
Nd4 {[%clk 0:01:32]} 21... Rac8 {[%clk 0:02:22.8]} 22. Rc1 {[%clk 0:01:22.5]}
22... Ne5 {[%clk 0:02:22.9]} 23. Nb5 {[%clk 0:01:05.9]} 23... Qb8 {[%clk
0:02:15.7]} 24. Nxa7 {[%clk 0:01:05.7]} 24... Qxa7 {[%clk 0:02:14]} 25. Qxe5
{[%clk 0:01:04.3]} 25... Qxa2 {[%clk 0:02:14.4]} 26. b4 {[%clk 0:00:53.6]} 26...
f6 {[%clk 0:02:10.6]} 27. Qf4 {[%clk 0:00:42.6]} 27... e5 {[%clk 0:02:10.4]} 28.
Qe3 {[%clk 0:00:41.6]} 28... Qa7 {[%clk 0:01:59.5]} 29. Bh3 {[%clk 0:00:36.5]}
29... Bd7 {[%clk 0:01:51.2]} 30. Rxc8 {[%clk 0:00:26.8]} 30... Bxc8 {[%clk
0:01:50.3]} 31. Qb3+ {[%clk 0:00:23.3]} 31... Kf8 {[%clk 0:01:48.5]} 32. Bxc8
{[%clk 0:00:22.1]} 32... Rxc8 {[%clk 0:01:49.4]} 33. Rd1 {[%clk 0:00:21.3]}
33... Qf7 {[%clk 0:01:45]} 34. Qd3 {[%clk 0:00:19.5]} 34... Qe7 {[%clk
0:01:43.9]} 35. Qd6 {[%clk 0:00:18.2]} 35... Qxd6 {[%clk 0:01:43.7]} 36. Rxd6
{[%clk 0:00:17.6]} 36... Rc4 {[%clk 0:01:44.6]} 37. Rxb6 {[%clk 0:00:17.3]}
37... Rxe4 {[%clk 0:01:45.2]} 38. Rb7 {[%clk 0:00:16.7]} 38... h5 {[%clk
0:01:44.7]} 39. Kf1 {[%clk 0:00:14.8]} 39... h4 {[%clk 0:01:43.7]} 40. b5 {[%clk
0:00:06.6]} 40... h3 {[%clk 0:01:43]} 41. b6 {[%clk 0:00:06.1]} 41... Rb4 {[%clk
0:01:43]} 42. Ke2 {[%clk 0:00:05.6]} 42... Rb3 {[%clk 0:01:43.4]} 43. Rb8+
{[%clk 0:00:04.6]} 43... Kf7 {[%clk 0:01:43.5]} 44. b7 {[%clk 0:00:05.3]} 44...
Kg6 {[%clk 0:01:36.5]} 45. Rh8 {[%clk 0:00:05]} 45... Rxb7 {[%clk 0:01:35.6]}
46. Rxh3 {[%clk 0:00:05]} 46... Rb8 {[%clk 0:01:36.5]} 47. Rh4 {[%clk
0:00:04.9]} 47... Kf5 {[%clk 0:01:34.8]} 48. Ra4 {[%clk 0:00:04.7]} 48... g5
{[%clk 0:01:35.3]} 49. h4 {[%clk 0:00:03.5]} 49... Rb2+ {[%clk 0:01:31.1]} 50.
Kf1 {[%clk 0:00:02.9]} 50... g4 {[%clk 0:01:31.2]} 51. Kg2 {[%clk 0:00:02.6]}
51... Rd2 {[%clk 0:01:30.6]} 52. Kf1 {[%clk 0:00:02.7]} 52... Rd8 {[%clk
0:01:27.1]} 53. Ke2 {[%clk 0:00:02.6]} 53... Rg8 {[%clk 0:01:27.4]} 54. Ke3
{[%clk 0:00:02.7]} 54... Rb8 {[%clk 0:01:26.7]} 55. Ke2 {[%clk 0:00:02.6]} 55...
Rb1 {[%clk 0:01:27.3]} 56. Ke3 {[%clk 0:00:02.7]} 56... Re1+ {[%clk 0:01:27.3]}
57. Kd2 {[%clk 0:00:02.9]} 57... Rh1 {[%clk 0:01:28.2]} 58. Ke2 {[%clk
0:00:03.1]} 58... Rc1 {[%clk 0:01:26]} 59. Ke3 {[%clk 0:00:03.4]} 59... Rc7
{[%clk 0:01:26.6]} 60. Ke2 {[%clk 0:00:03.4]} 60... Rg7 {[%clk 0:01:27.2]} 61.
Rb4 {[%clk 0:00:03.5]} 61... Ke6 {[%clk 0:01:28.1]} 62. Ra4 {[%clk 0:00:03.5]}
62... f5 {[%clk 0:01:28.4]} 63. Ra6+ {[%clk 0:00:03.5]} 63... Kd5 {[%clk
0:01:27.7]} 64. Ke3 {[%clk 0:00:03.9]} 64... Rc7 {[%clk 0:01:24.5]} 65. Ra5+
{[%clk 0:00:04.3]} 65... Ke6 {[%clk 0:01:24.9]} 66. Ra6+ {[%clk 0:00:04.8]}
66... Ke7 {[%clk 0:01:24.7]} 67. Ra5 {[%clk 0:00:05.1]} 67... Kf6 {[%clk
0:01:24.8]} 68. Ra6+ {[%clk 0:00:04.8]} 68... Kf7 {[%clk 0:01:25.2]} 69. Ra5
{[%clk 0:00:05.2]} 69... Rc3+ {[%clk 0:01:25.3]} 70. Kd2 {[%clk 0:00:04.8]}
70... Rf3 {[%clk 0:01:24.9]} 71. Ke2 {[%clk 0:00:04.8]} 71... e4 {[%clk
0:01:25.4]} 72. Ra6 {[%clk 0:00:04.7]} 72... e3 {[%clk 0:01:25.2]} 73. fxe3
{[%clk 0:00:03.7]} 73... Rxg3 {[%clk 0:01:25.6]} 74. h5 {[%clk 0:00:03.8]} 74...
Rh3 {[%clk 0:01:22.5]} 75. h6 {[%clk 0:00:03.9]} 75... Rh2+ {[%clk 0:01:22.8]}
76. Kf1 {[%clk 0:00:03]} 76... Rh3 {[%clk 0:01:22.5]} 77. Kf2 {[%clk 0:00:02.6]}
77... Rf3+ {[%clk 0:01:22.1]} 78. Ke2 {[%clk 0:00:02.6]} 78... Kg8 {[%clk
0:01:23]} 79. Rb6 {[%clk 0:00:02]} 79... Kh7 {[%clk 0:01:23.5]} 80. Ra6 {[%clk
0:00:02.2]} 80... Rh3 {[%clk 0:01:23.6]} 81. Rf6 {[%clk 0:00:02.1]} 81... Rf3
{[%clk 0:01:24.2]} 0-1

[Event "*** Titled Tuesday Blitz"]
[Site "Chess.com"]
[Date "2020.05.26"]
[Round "2"]
[White "aleksandrovaleksei"]
[Black "Bossche-CM"]
[Result "1-0"]
[WhiteElo "2689"]
[BlackElo "2460"]
[TimeControl "180+1"]
[EndTime "10:18:28 PDT"]
[Termination "aleksandrovaleksei won by checkmate"]

1. d4 {[%clk 0:03:00.9]} 1... Nf6 {[%clk 0:02:59.3]} 2. c4 {[%clk 0:03:00.7]}
2... e6 {[%clk 0:02:56.8]} 3. Nc3 {[%clk 0:03:00.8]} 3... Bb4 {[%clk 0:02:54]}
4. e3 {[%clk 0:03:00.9]} 4... b6 {[%clk 0:02:52.3]} 5. Ne2 {[%clk 0:02:59.8]}
5... Bb7 {[%clk 0:02:49.9]} 6. a3 {[%clk 0:02:58.6]} 6... Be7 {[%clk 0:02:48.1]}
7. d5 {[%clk 0:02:48.9]} 7... a5 {[%clk 0:02:37.7]} 8. Ng3 {[%clk 0:02:26.6]}
8... O-O {[%clk 0:02:36.2]} 9. Be2 {[%clk 0:02:25.9]} 9... Re8 {[%clk
0:02:33.9]} 10. O-O {[%clk 0:02:25]} 10... d6 {[%clk 0:02:31.6]} 11. e4 {[%clk
0:02:21.1]} 11... Nbd7 {[%clk 0:02:29.9]} 12. Be3 {[%clk 0:02:20.5]} 12... Bf8
{[%clk 0:02:25.6]} 13. b4 {[%clk 0:01:55.5]} 13... axb4 {[%clk 0:02:24.6]} 14.
axb4 {[%clk 0:01:55]} 14... Rxa1 {[%clk 0:02:24.7]} 15. Qxa1 {[%clk 0:01:54.4]}
15... Ne5 {[%clk 0:02:14]} 16. h3 {[%clk 0:01:51.2]} 16... g6 {[%clk 0:02:04.1]}
17. Qa7 {[%clk 0:01:45.8]} 17... Qa8 {[%clk 0:01:59.4]} 18. Ra1 {[%clk
0:01:44.2]} 18... Qxa7 {[%clk 0:01:59.1]} 19. Rxa7 {[%clk 0:01:43.3]} 19... Rb8
{[%clk 0:01:59.5]} 20. Nb5 {[%clk 0:01:33.8]} 20... Ne8 {[%clk 0:01:59.5]} 21.
Nd4 {[%clk 0:01:18.8]} 21... exd5 {[%clk 0:01:54.9]} 22. cxd5 {[%clk 0:01:16.4]}
22... Bg7 {[%clk 0:01:54.3]} 23. b5 {[%clk 0:01:10.3]} 23... Kf8 {[%clk
0:01:52.3]} 24. f4 {[%clk 0:01:05.8]} 24... Nd7 {[%clk 0:01:46.6]} 25. Kf2
{[%clk 0:00:57.5]} 25... Ke7 {[%clk 0:01:43.4]} 26. Nc6+ {[%clk 0:00:47.7]}
26... Bxc6 {[%clk 0:01:42.6]} 27. dxc6 {[%clk 0:00:44]} 27... Nc5 {[%clk
0:01:41.6]} 28. Bc4 {[%clk 0:00:39.3]} 28... Ne6 {[%clk 0:01:26.2]} 29. Ne2
{[%clk 0:00:38.5]} 29... h5 {[%clk 0:01:17]} 30. g4 {[%clk 0:00:37.9]} 30...
hxg4 {[%clk 0:01:16.5]} 31. hxg4 {[%clk 0:00:38.2]} 31... Nc5 {[%clk 0:00:54.4]}
32. Kf3 {[%clk 0:00:37.3]} 32... Bb2 {[%clk 0:00:51.2]} 33. f5 {[%clk
0:00:19.9]} 33... Be5 {[%clk 0:00:39.5]} 34. g5 {[%clk 0:00:19.6]} 34... Kf8
{[%clk 0:00:08.3]} 35. Nf4 {[%clk 0:00:15.5]} 35... Bxf4 {[%clk 0:00:07.5]} 36.
Bxf4 {[%clk 0:00:15.2]} 36... gxf5 {[%clk 0:00:07.8]} 37. exf5 {[%clk
0:00:14.9]} 37... Kg7 {[%clk 0:00:08.3]} 38. f6+ {[%clk 0:00:12.7]} 38... Kf8
{[%clk 0:00:07.4]} 39. Kg4 {[%clk 0:00:11.9]} 39... Kg8 {[%clk 0:00:07.3]} 40.
Kf5 {[%clk 0:00:11.5]} 40... Kf8 {[%clk 0:00:05.9]} 41. Be3 {[%clk 0:00:11.5]}
41... Rc8 {[%clk 0:00:06.2]} 42. g6 {[%clk 0:00:09.3]} 42... fxg6+ {[%clk
0:00:06]} 43. Kxg6 {[%clk 0:00:09.5]} 43... Ne4 {[%clk 0:00:06.2]} 44. Bh6+
{[%clk 0:00:08.8]} 44... Ng7 {[%clk 0:00:05.6]} 45. Bxg7+ {[%clk 0:00:08.5]}
45... Ke8 {[%clk 0:00:05.4]} 46. f7+ {[%clk 0:00:08.4]} 46... Ke7 {[%clk
0:00:06.3]} 47. f8=Q+ {[%clk 0:00:08.4]} 47... Rxf8 {[%clk 0:00:06.9]} 48. Bxf8+
{[%clk 0:00:08.6]} 48... Kxf8 {[%clk 0:00:07.8]} 49. Rxc7 {[%clk 0:00:08.5]}
49... Nc5 {[%clk 0:00:08.7]} 50. Rf7+ {[%clk 0:00:08.3]} 50... Ke8 {[%clk
0:00:08]} 51. c7 {[%clk 0:00:07.6]} 51... Ne6 {[%clk 0:00:05.5]} 52. c8=Q+
{[%clk 0:00:07.2]} 52... Nd8 {[%clk 0:00:06.4]} 53. Qd7# {[%clk 0:00:07.4]} 1-0

[Event "*** Titled Tuesday Blitz"]
[Site "Chess.com"]
[Date "2020.05.26"]
[Round "2"]
[White "chessdjw"]
[Black "enzovsky"]
[Result "1-0"]
[WhiteElo "2700"]
[BlackElo "2305"]
[TimeControl "180+1"]
[EndTime "10:18:30 PDT"]
[Termination "chessdjw won on time"]

1. e4 {[%clk 0:03:00.9]} 1... c5 {[%clk 0:02:58.5]} 2. Nf3 {[%clk 0:03:00.7]}
2... d6 {[%clk 0:02:58.2]} 3. Bb5+ {[%clk 0:03:00.9]} 3... Bd7 {[%clk
0:02:57.9]} 4. c4 {[%clk 0:02:59.7]} 4... g6 {[%clk 0:02:56.4]} 5. d4 {[%clk
0:02:58.1]} 5... cxd4 {[%clk 0:02:56.3]} 6. Nxd4 {[%clk 0:02:59]} 6... Bg7
{[%clk 0:02:55.8]} 7. Nc3 {[%clk 0:02:55.4]} 7... Nf6 {[%clk 0:02:54.5]} 8. Be3
{[%clk 0:02:53.8]} 8... O-O {[%clk 0:02:54.6]} 9. Bxd7 {[%clk 0:02:52.9]} 9...
Qxd7 {[%clk 0:02:48.5]} 10. f3 {[%clk 0:02:52.7]} 10... Nc6 {[%clk 0:02:48.6]}
11. O-O {[%clk 0:02:52.3]} 11... Rfc8 {[%clk 0:02:47.5]} 12. b3 {[%clk
0:02:49.1]} 12... Qd8 {[%clk 0:02:45]} 13. Qd2 {[%clk 0:02:41.7]} 13... Qa5
{[%clk 0:02:41.2]} 14. Rfd1 {[%clk 0:02:40.8]} 14... Nd7 {[%clk 0:02:28.8]} 15.
Rac1 {[%clk 0:02:31.1]} 15... a6 {[%clk 0:02:20.8]} 16. Nxc6 {[%clk 0:01:46]}
16... bxc6 {[%clk 0:02:21.7]} 17. Na4 {[%clk 0:01:39.7]} 17... Qxd2 {[%clk
0:02:03.8]} 18. Rxd2 {[%clk 0:01:39.5]} 18... c5 {[%clk 0:01:57]} 19. Rcd1
{[%clk 0:01:34.9]} 19... Rcb8 {[%clk 0:01:44.1]} 20. h3 {[%clk 0:01:31.5]} 20...
Nb6 {[%clk 0:01:41.4]} 21. Nxb6 {[%clk 0:01:28.6]} 21... Rxb6 {[%clk 0:01:42.3]}
22. f4 {[%clk 0:01:22.4]} 22... a5 {[%clk 0:01:38.7]} 23. e5 {[%clk 0:01:22.4]}
23... dxe5 {[%clk 0:01:18]} 24. Bxc5 {[%clk 0:01:21.9]} 24... Rbb8 {[%clk
0:01:05.7]} 25. fxe5 {[%clk 0:01:14.5]} 25... Bxe5 {[%clk 0:01:06.6]} 26. Bxe7
{[%clk 0:01:13.8]} 26... a4 {[%clk 0:00:57.1]} 27. Rd8+ {[%clk 0:01:12.3]} 27...
Kg7 {[%clk 0:00:52.3]} 28. Bf8+ {[%clk 0:01:03.1]} 28... Kf6 {[%clk 0:00:52.1]}
29. Rf1+ {[%clk 0:01:02.9]} 29... Ke6 {[%clk 0:00:48.4]} 30. Rxb8 {[%clk
0:00:25.7]} 30... Rxb8 {[%clk 0:00:49.3]} 31. Bc5 {[%clk 0:00:24]} 31... axb3
{[%clk 0:00:32.9]} 32. axb3 {[%clk 0:00:24.9]} 32... Rxb3 {[%clk 0:00:29.5]} 33.
Rc1 {[%clk 0:00:24.8]} 33... Rd3 {[%clk 0:00:26.1]} 34. Kf1 {[%clk 0:00:22.5]}
34... Rd2 {[%clk 0:00:24.1]} 35. Be3 {[%clk 0:00:19.7]} 35... Rd3 {[%clk
0:00:17.7]} 36. Ke2 {[%clk 0:00:18.9]} 36... Rc3 {[%clk 0:00:10.4]} 37. Rxc3
{[%clk 0:00:19]} 37... Bxc3 {[%clk 0:00:11.3]} 38. Kd3 {[%clk 0:00:19.9]} 38...
Be5 {[%clk 0:00:10.1]} 39. Bd4 {[%clk 0:00:18.7]} 39... Bc7 {[%clk 0:00:06.7]}
40. Bg7 {[%clk 0:00:12.4]} 40... f5 {[%clk 0:00:06.6]} 41. Kd4 {[%clk
0:00:12.4]} 41... Bg3 {[%clk 0:00:02.9]} 42. c5 {[%clk 0:00:11.3]} 42... Kd7
{[%clk 0:00:03.1]} 43. Kd5 {[%clk 0:00:11.6]} 43... h5 {[%clk 0:00:01.7]} 44.
Be5 {[%clk 0:00:11.1]} 44... Bf2 {[%clk 0:00:02]} 45. c6+ {[%clk 0:00:11]} 45...
Kc8 {[%clk 0:00:02.6]} 46. Ke6 {[%clk 0:00:11.2]} 46... Be3 {[%clk 0:00:02.3]}
47. Kf6 {[%clk 0:00:11.1]} 47... g5 {[%clk 0:00:01.8]} 48. Kxf5 {[%clk
0:00:11.4]} 48... h4 {[%clk 0:00:02.7]} 49. Bf6 {[%clk 0:00:10.9]} 49... Kc7
{[%clk 0:00:02.8]} 50. Bxg5 {[%clk 0:00:11.3]} 50... Bd4 {[%clk 0:00:02.7]} 51.
Bxh4 {[%clk 0:00:11.2]} 51... Kxc6 {[%clk 0:00:03.4]} 52. Bf6 {[%clk 0:00:11.9]}
52... Be3 {[%clk 0:00:02.4]} 53. Ke6 {[%clk 0:00:12.2]} 53... Kc7 {[%clk
0:00:02.5]} 54. g4 {[%clk 0:00:12.1]} 1-0